[Event "Polugaevsky Memorial 2018"]
[Site "Samara"]
[Date "2018.07.13"]
[Round "4"]
[White "Skatchkov, Valery"]
[Black "Drygalov, Andrey"]
[Result "1/2-1/2"]
[ECO "D70"]
[WhiteElo "2287"]
[BlackElo "2439"]
[Annotator "NA"]
[PlyCount "81"]
[EventDate "2018.07.10"]
[EventType "swiss"]
[EventCountry "RUS"]
[SourceTitle "playchess.com"]
[Source "ChessBase"]
[SourceQuality "1"]
[TimeControl "40/5400+30:1800+30"]

1. d4 Nf6 {[%emt 0:00:51]} 2. c4 {[%emt 0:00:13]} g6 {[%emt 0:00:05]} 3. Nf3 Bg7 {[%emt 0:00:05]} 4. g3 {[%emt 0:00:30]} c6 5. Nc3 d5 {[%emt 0:00:15]} 6. cxd5 {[%emt 0:03:38]} cxd5 {[%emt 0:00:19]} 7. Bg2 {[%emt 0:00:32]} O-O {[%emt 0:00:06]} 8. O-O {[%emt 0:00:06]} e6 {[%emt 0:00:04]} 9. Ne5 {[%emt 0:02:01]} Nfd7 {[%emt 0:00:09]} 10. Nxd7 {[%emt 0:03:07]} Qxd7 {[%emt 0:03:20] D79: Fianchetto Grünfeld: Symmetrical Variation (6 0-0 c6 7 cxd5 cxd5)} (10... Bxd7 11. b3 Nc6 12. e3 Qa5 13. Bd2 Qa6 14. Qb1 Rac8 15. Rd1 Rfd8 16. a3 b6 17. b4 Ne7 18. b5 Qb7 19. Qd3 Nf5 20. a4 Be8 21. Na2 Nd6 22. Rac1 Rxc1 {½-½ (22) Tikkanen,H (2586)-L'Ami,E (2594) Stockholm 2012}) 11. e3 {[%emt 0:01:44]} Nc6 {[%emt 0:06:39]} 12. b3 {[%emt 0:00:58]} b6 {[%emt 0:03:44]} 13. Ba3 {[%emt 0:02:00]} Rd8 {[%emt 0:00:08]} 14. Qe2 {[%emt 0:00:28]} a5 $146 {[%emt 0:08:07]} ({Predecessor:} 14... Bb7 15. Rac1 Rac8 16. Rfd1 Nb8 17. Qd2 Ba6 18. Ne2 Rc6 {½-½ (18) Schenderowitsch,M (2286)-Mueller,R (2412) Germany 2013}) 15. Rfd1 {[%emt 0:00:48]} Ba6 {[%emt 0:00:39]} 16. Qe1 {[%emt 0:00:48]} Nb4 {[%emt 0:05:25]} 17. Bxb4 {[%emt 0:05:25]} axb4 {[%emt 0:01:08]} 18. Na4 {[%emt 0:08:57]} Qd6 {[%emt 0:01:24]} 19. Bf1 {[%emt 0:01:45]} Bb7 {[%emt 0:04:39]} 20. Rac1 {[%emt 0:06:59]} Bc6 21. Nxb6 {[%emt 0:01:39]} Rxa2 {[%emt 0:16:19]} 22. Rd2 {[%emt 0:01:52]} Ra3 {[%emt 0:15:41]} 23. Qd1 {[%emt 0:03:46]} Rb8 {[%emt 0:06:01]} 24. Na4 {[%emt 0:01:05]} Bf8 {[%emt 0:01:24]} 25. Nc5 {[%emt 0:00:40]} Rba8 {[%emt 0:03:08]} 26. Rdc2 {[%emt 0:00:41]} Be8 {[%emt 0:00:35]} 27. h4 {[%emt 0:03:09]} Qb6 $11 {[%emt 0:03:12]} 28. h5 {[%emt 0:00:33]} Qa7 {[%emt 0:02:01]} 29. Bh3 {[%emt 0:10:58]} Qb6 {[%emt 0:04:50]} 30. Kh2 Ra2 {[%emt 0:02:28]} 31. Rxa2 {[%emt 0:16:37]} Rxa2 32. Nd3 Bb5 {[%emt 0:03:27]} 33. Kg2 {[%emt 0:00:49]} Bxd3 {[%emt 0:02:58]} 34. Qxd3 {[%emt 0:00:16]} Qa6 {[%emt 0:00:09]} 35. Qxa6 {[%emt 0:00:39]} Rxa6 {[%emt 0:00:04]} 36. hxg6 {[%emt 0:00:05]} hxg6 {[%emt 0:00:03]} 37. Bg4 {[%emt 0:00:11]} Ra2 {[%emt 0:00:09]} 38. Kf1 {[%emt 0:00:45]} Rb2 {[%emt 0:00:40]} 39. Bd1 {[%emt 0:00:06]} Ra2 {[%emt 0:00:05]} 40. Rc2 {[%emt 0:00:00]} Rxc2 {[%emt 0:00:00]} 41. Bxc2 {[%emt 0:00:30]} 1/2-1/2

[Event "Polugaevsky Memorial 2018"]
[Site "Samara"]
[Date "2018.07.13"]
[Round "4"]
[White "Gitelson, Arkady"]
[Black "Lugovskoy, Maxim"]
[Result "1/2-1/2"]
[ECO "C17"]
[WhiteElo "2099"]
[BlackElo "2391"]
[Annotator "NA"]
[PlyCount "130"]
[EventDate "2018.07.10"]
[EventType "swiss"]
[EventCountry "RUS"]
[SourceTitle "playchess.com"]
[Source "ChessBase"]
[SourceQuality "1"]
[TimeControl "40/5400+30:1800+30"]

1. e4 {[%emt 0:07:04]} e6 {[%emt 0:00:00]} 2. d4 d5 {[%emt 0:00:00]} 3. Nc3 {[%emt 0:00:09]} Bb4 {[%emt 0:00:00]} 4. e5 c5 {[%emt 0:00:00]} 5. dxc5 {[%emt 0:00:05]} Nc6 {[%emt 0:07:34]} 6. Nf3 {[%emt 0:00:51] C17: French: 3 Nc3 Bb4 4 e5 c5 sidelines} Nh6 {[%emt 0:08:56]} (6... Nge7 7. Bd3 Ng6 8. O-O O-O 9. Bg5 Qa5 10. Bd2 Qxc5 11. a3 Bxc3 12. Bxc3 Qe7 13. Re1 Rd8 14. Bd4 b6 15. c3 Bb7 {½-½ (66) Hovhannisyan,R (2631)-Martirosyan,H (2516) Yerevan 2017}) 7. Bd3 {[%emt 0:04:07]} Ng4 {[%emt 0:09:26]} 8. O-O {[%emt 0:06:10]} Ngxe5 {[%emt 0:02:41]} 9. Nxe5 {[%emt 0:00:06]} Nxe5 {[%emt 0:00:03]} 10. Bf4 {[%emt 0:00:04]} Bxc3 {[%emt 0:15:03]} 11. bxc3 {[%emt 0:00:12]} Qf6 {[%emt 0:02:30]} (11... Nxd3 $11 {hält das Gleichgewicht.} 12. cxd3 O-O) 12. Bb5+ {[%emt 0:05:15]} Bd7 {[%emt 0:03:50]} 13. Bxd7+ $146 {[%emt 0:00:18]} ({White should try Predecessor:} 13. Bxe5 $1 $16 Qxe5 14. Bxd7+ Kxd7 15. Rb1 Rab8 {1-0 (36) Grabliauskas,V (2442)-Kroll,O (2456) ICCF email 2002}) 13... Nxd7 {[%emt 0:01:24]} 14. Bd6 {[%emt 0:04:33]} Qxc3 {[%emt 0:02:02]} 15. Qe2 {[%emt 0:06:50]} a6 {[%emt 0:13:26]} 16. Rad1 {[%emt 0:07:20]} Qc4 {[%emt 0:01:47]} 17. Qe3 {[%emt 0:04:19]} Nf6 {[%emt 0:02:17] [#]} 18. Rd4 $1 {[%emt 0:10:51]} Qxc2 {[%emt 0:05:51] [#]} ({But not} 18... Qxa2 $2 19. Rb4 $18) (18... Qb5 $16 {was called for.}) 19. Rb4 $1 {[%emt 0:11:21]} d4 $18 {[%emt 0:16:30]} 20. Qxd4 {[%emt 0:03:55]} O-O-O {[%emt 0:01:48]} 21. Rc4 {[%emt 0:10:41]} e5 {[%emt 0:01:48]} 22. Qh4 {[%emt 0:04:32]} Qf5 {[%emt 0:08:02]} 23. Qg3 {[%emt 0:07:20]} Qd7 24. Rb1 Nd5 {[%emt 0:02:54]} 25. Qxe5 {[%emt 0:04:15]} Qc6 26. Qf5+ {[%emt 0:03:44]} Rd7 {[%emt 0:01:00]} 27. Rd4 {[%emt 0:00:11]} Nc3 {[%emt 0:03:31]} 28. Re1 {[%emt 0:00:21]} Nb5 29. Rd3 {[%emt 0:01:06]} g6 {[%emt 0:00:53]} 30. Qh3 f5 {[%emt 0:00:44]} 31. Qg3 {[%emt 0:07:43]} Rhd8 {[%emt 0:00:11]} 32. h4 Nxd6 {[%emt 0:00:35]} 33. cxd6 {[%emt 0:00:58]} Kb8 34. Red1 Qa4 {[%emt 0:00:46]} 35. a3 {[%emt 0:04:08]} Re8 {[%emt 0:00:34]} 36. Rc1 Qg4 {[%emt 0:03:00]} 37. Qxg4 {[%emt 0:04:15]} fxg4 {[%emt 0:00:05]} 38. Rc4 {[%emt 0:00:23]} h5 {[%emt 0:00:07]} 39. Kh2 {[%emt 0:00:58]} Re6 {[%emt 0:00:32]} 40. Rcd4 b6 {[%emt 0:00:00]} 41. Rd1 {[%emt 0:00:58]} Kb7 {[%emt 0:01:24]} 42. R4d2 {[%emt 0:00:04]} b5 {[%emt 0:01:23]} 43. Kg3 {[%emt 0:01:50]} Kc6 {[%emt 0:00:14]} 44. Rc2+ {[%emt 0:00:04]} Kb6 {[%emt 0:00:02]} 45. Rcd2 {[%emt 0:00:33]} Re4 46. Rd3 Kc6 {[%emt 0:03:51]} 47. Rc1+ {[%emt 0:03:31]} Rc4 {[%emt 0:00:53]} 48. Rcd1 {[%emt 0:00:03]} Rc2 {[%emt 0:01:10]} 49. f3 {[%emt 0:02:35]} Rc4 50. R1d2 gxf3 {[%emt 0:03:48]} 51. gxf3 {[%emt 0:01:06]} Kb6 {[%emt 0:07:01]} 52. Re2 {[%emt 0:02:18]} Kc6 {[%emt 0:00:38]} 53. Re6 {[%emt 0:03:13]} Rc1 54. Kf4 {[%emt 0:04:59]} Rf7+ {[%emt 0:02:19]} 55. Kg5 {[%emt 0:03:08]} Kd7 {[%emt 0:04:28]} 56. Rxg6 Rc4 57. Kxh5 {[%emt 0:05:16]} Rh7+ {[%emt 0:02:37]} 58. Kg5 {[%emt 0:00:18]} Rcxh4 {[%emt 0:00:38]} 59. Kf5 Rf7+ {[%emt 0:00:56]} 60. Rf6 {[%emt 0:04:50]} Rf4+ {[%emt 0:01:06]} 61. Kxf4 Rxf6+ {[%emt 0:00:15]} 62. Ke5 {[%emt 0:00:23]} Re6+ {[%emt 0:00:04]} 63. Kf5 {[%emt 0:00:03]} Rxd6 {[%emt 0:00:23]} 64. Rxd6+ {[%emt 0:00:03]} Kxd6 {[%emt 0:00:07]} 65. Ke4 {[%emt 0:00:03]} a5 {[%emt 0:00:54]} 1/2-1/2

[Event "Polugaevsky Memorial 2018"]
[Site "Samara"]
[Date "2018.07.13"]
[Round "5"]
[White "Volovich, Vasily"]
[Black "Fedorov, Alexei"]
[Result "0-1"]
[ECO "B22"]
[WhiteElo "2244"]
[BlackElo "2572"]
[Annotator "ChessBase"]
[PlyCount "90"]
[EventDate "2018.07.10"]
[EventType "swiss"]
[EventCountry "RUS"]
[SourceTitle "playchess.com"]
[Source "ChessBase"]
[SourceQuality "1"]
[TimeControl "40/5400+30:1800+30"]

1. e4 {[%emt 0:00:00]} c5 {[%emt 0:00:23]} 2. c3 {[%emt 0:00:29]} Nf6 {[%emt 0:00:28]} 3. e5 {[%emt 0:00:31]} Nd5 {[%emt 0:00:06]} 4. Nf3 {[%emt 0:00:54]} e6 {[%emt 0:00:45]} 5. d4 {[%emt 0:00:44]} cxd4 {[%emt 0:00:06]} 6. cxd4 {[%emt 0:00:27]} b6 {[%emt 0:01:24]} 7. a3 {[%emt 0:02:37]} Be7 {[%emt 0:04:13]} 8. Bd3 {[%emt 0:02:50]} Ba6 {[%emt 0:00:48]} 9. Nc3 {[%emt 0:04:51]} Nxc3 {[%emt 0:11:11]} 10. bxc3 {[%emt 0:00:11]} Bxd3 {[%emt 0:06:24]} 11. Qxd3 {[%emt 0:00:09]} d5 {[%emt 0:02:49]} 12. exd6 {[%emt 0:01:48]} Qxd6 {[%emt 0:00:38]} 13. O-O {[%emt 0:03:20]} Nc6 {[%emt 0:01:52]} 14. Bg5 {[%emt 0:08:30]} Bxg5 {[%emt 0:06:05]} 15. Nxg5 {[%emt 0:01:03]} h6 {[%emt 0:00:18]} 16. Nf3 {[%emt 0:08:01]} O-O {[%emt 0:00:46]} 17. Rfd1 {[%emt 0:08:01]} Rfd8 {[%emt 0:02:49]} 18. c4 {[%emt 0:08:21]} Rac8 {[%emt 0:05:28]} 19. Qe2 {[%emt 0:09:43]} Na5 {[%emt 0:04:17]} 20. d5 {[%emt 0:17:02]} Nxc4 {[%emt 0:00:37]} 21. dxe6 {[%emt 0:00:21]} Qxe6 {[%emt 0:00:11]} 22. Rxd8+ {[%emt 0:00:41]} Rxd8 {[%emt 0:00:06]} 23. Qxe6 {[%emt 0:00:22]} fxe6 {[%emt 0:00:05]} 24. Kf1 {[%emt 0:00:40]} b5 {[%emt 0:08:30]} 25. Ke2 {[%emt 0:03:07]} a5 {[%emt 0:00:59]} 26. Ra2 {[%emt 0:02:11]} Rd5 {[%emt 0:05:08]} 27. h4 {[%emt 0:05:53]} Kf7 {[%emt 0:00:36]} 28. g3 {[%emt 0:01:12]} e5 {[%emt 0:03:59]} 29. Ne1 {[%emt 0:03:35]} e4 {[%emt 0:06:00]} 30. f3 {[%emt 0:01:35]} Rd4 {[%emt 0:00:54]} 31. fxe4 {[%emt 0:01:27]} Rxe4+ {[%emt 0:00:09]} 32. Kf2 {[%emt 0:00:44]} Ke6 {[%emt 0:01:30]} 33. Nf3 {[%emt 0:01:39]} Kd5 {[%emt 0:00:34]} 34. Ra1 {[%emt 0:02:18]} Re3 {[%emt 0:03:45]} 35. a4 {[%emt 0:00:29]} b4 {[%emt 0:00:39]} 36. Rd1+ {[%emt 0:00:39]} Kc5 {[%emt 0:01:03]} 37. Rd8 {[%emt 0:00:46]} Rxf3+ {[%emt 0:02:13]} 38. Kxf3 {[%emt 0:00:08]} b3 {[%emt 0:00:03]} 39. Rc8+ {[%emt 0:01:13]} Kd4 {[%emt 0:00:30]} 40. Ke2 {[%emt 0:00:00]} b2 {[%emt 0:00:00]} 41. Rb8 {[%emt 0:01:11]} Kc3 {[%emt 0:00:25]} 42. Kd1 {[%emt 0:00:53]} Ne3+ {[%emt 0:01:07]} 43. Ke2 {[%emt 0:00:18]} Nd5 {[%emt 0:00:12]} 44. Rc8+ {[%emt 0:01:02]} Kb3 {[%emt 0:00:15]} 45. Rb8+ {[%emt 0:00:14]} Nb4 {[%emt 0:00:05]} 0-1

[Event "Polugaevsky Memorial 2018"]
[Site "Samara"]
[Date "2018.07.14"]
[Round "5"]
[White "Mukhin, Alexander"]
[Black "Kotlyar, Kirill"]
[Result "1/2-1/2"]
[ECO "B30"]
[WhiteElo "2167"]
[BlackElo "2407"]
[Annotator "NA"]
[PlyCount "118"]
[EventDate "2018.07.10"]
[EventType "swiss"]
[EventCountry "RUS"]
[SourceTitle "playchess.com"]
[Source "ChessBase"]
[SourceQuality "1"]
[TimeControl "40/5400+30:1800+30"]

1. e4 {[%emt 0:00:00]} c5 {[%emt 0:00:00]} 2. Nf3 {[%emt 0:00:00]} Nc6 {[%emt 0:00:00]} 3. d3 {[%emt 0:00:00]} g6 {[%emt 0:03:42]} 4. g3 {[%emt 0:00:00]} Bg7 {[%emt 0:00:08]} 5. Bg2 {[%emt 0:00:00]} d6 {[%emt 0:05:39]} 6. c3 {[%emt 0:00:00]} Nf6 {[%emt 0:01:31]} 7. O-O {[%emt 0:00:00]} O-O {[%emt 0:00:13]} 8. Re1 {[%emt 0:00:07]} Bg4 {[%emt 0:00:13]} 9. h3 {[%emt 0:00:08]} Bxf3 {[%emt 0:00:10]} 10. Qxf3 {[%emt 0:00:03]} Nd7 {[%emt 0:00:10] A05: Réti Opening: 1 Nf3 Nf6} (10... Rb8 11. Be3 Nd7 12. a4 a6 13. Qd1 Qc7 14. Nd2 b5 15. axb5 axb5 16. Rc1 b4 17. d4 bxc3 18. bxc3 Rfc8 {1-0 (39) Saric,I (2664)-Swapnil,S (2533) Caleta 2018}) 11. Nd2 {[%emt 0:00:36]} b5 {[%emt 0:00:41]} 12. a3 $146 {[%emt 0:02:09]} ({Predecessor:} 12. Qe2 Qb6 13. f4 Rab8 14. Kh2 Qa6 15. Nf3 b4 16. c4 Nd4 17. Nxd4 cxd4 {1-0 (35) Cisneros Belenguer,L (2250)-Gorgs,A (2188) Budapest 2003}) 12... a5 {[%emt 0:00:37]} 13. Nf1 {[%emt 0:02:30]} b4 {[%emt 0:14:43]} 14. axb4 {[%emt 0:06:04]} axb4 {[%emt 0:18:19]} 15. Bd2 $1 {[%emt 0:02:03]} Qb6 {[%emt 0:05:15]} 16. Qd1 {[%emt 0:12:50] [#]} (16. Qe2 $11) 16... bxc3 {[%emt 0:05:02]} (16... Rxa1 $1 $17 17. Qxa1 Nde5) 17. bxc3 {[%emt 0:03:08]} Nde5 {[%emt 0:13:07]} 18. Qc2 {[%emt 0:05:34]} Qb5 {[%emt 0:03:41]} 19. Rxa8 {[%emt 0:00:57]} Rxa8 {[%emt 0:00:09]} 20. Re3 {[%emt 0:00:43]} (20. Rb1 $11 Qxd3 21. Qxd3 Nxd3 {[#]} 22. e5 $1 {[%mdl 512]}) 20... Ra3 {[%emt 0:03:24]} 21. f4 {[%emt 0:03:22]} Nd7 {[%emt 0:00:49]} 22. Re1 $1 {[%emt 0:00:30]} e6 {[%emt 0:02:29]} 23. Rb1 {[%emt 0:02:55]} Qa6 {[%emt 0:00:08]} 24. Kh2 {[%emt 0:04:20]} Kf8 {[%emt 0:07:57]} 25. Ne3 {[%emt 0:01:17]} Ra2 {[%emt 0:00:37]} 26. Rb2 {[%emt 0:01:05]} Rxb2 {[%emt 0:08:59]} 27. Qxb2 {[%emt 0:00:02]} Nb6 {[%emt 0:02:44]} 28. Qb1 {[%emt 0:02:15]} Ne7 {[%emt 0:01:09]} 29. Bf1 {[%emt 0:00:42]} Qa5 {[%emt 0:00:51]} 30. Nc4 {[%emt 0:00:32]} Nxc4 {[%emt 0:00:08]} 31. Qb8+ {[%emt 0:00:07]} Nc8 {[%emt 0:00:12]} 32. Qxc8+ {[%emt 0:00:07]} Ke7 {[%emt 0:00:04]} 33. dxc4 {[%emt 0:02:12]} Qa2 {[%emt 0:00:03]} 34. Qc7+ {[%emt 0:00:12]} Ke8 {[%emt 0:00:10]} 35. Qxd6 {[%emt 0:02:25]} Bxc3 {[%emt 0:00:04]} 36. Bg2 {[%emt 0:04:26]} Qxd2 {[%emt 0:00:57]} 37. Qxc5 {[%emt 0:00:34]} Bb4 {[%emt 0:02:13]} 38. Qc8+ {[%emt 0:00:08]} Qd8 {[%emt 0:00:16]} 39. Qb7 {[%emt 0:00:28]} Ba5 {[%emt 0:00:19]} 40. e5 {[%emt 0:00:00]} Kf8 {[%emt 0:00:00]} 41. c5 {[%emt 0:02:19]} h5 {[%emt 0:00:36]} 42. h4 {[%emt 0:01:00]} Be1 {[%emt 0:03:36]} 43. Qe4 {[%emt 0:04:07]} Bf2 {[%emt 0:01:20]} 44. Qc2 {[%emt 0:00:30]} Be3 {[%emt 0:00:28]} 45. c6 {[%emt 0:01:01]} Bb6 {[%emt 0:00:09]} 46. Be4 {[%emt 0:00:50]} Kg7 {[%emt 0:01:05]} 47. Kh3 {[%emt 0:00:12]} Qe7 {[%emt 0:01:21]} 48. Bd3 {[%emt 0:00:55]} Bd8 {[%emt 0:00:34]} 49. Qc3 {[%emt 0:01:16]} Kh7 {[%emt 0:02:36]} 50. Qd4 {[%emt 0:00:13]} Kg7 {[%emt 0:06:03]} 51. Qd6 {[%emt 0:00:26]} Qc7 {[%emt 0:00:09]} 52. Be2 {[%emt 0:00:48]} Qb6 {[%emt 0:00:40]} 53. Bf3 {[%emt 0:01:22]} Qc7 $16 {[%emt 0:01:10]} 54. g4 {[%emt 0:13:16]} hxg4+ {[%emt 0:00:07]} 55. Kxg4 {[%emt 0:03:02]} Qb6 {[%emt 0:01:04]} 56. Qd2 {[%emt 0:00:21]} Qg1+ {[%emt 0:01:12]} 57. Kh3 {[%emt 0:02:26]} Bb6 {[%emt 0:01:17]} 58. Qg2 {[%emt 0:02:09]} Qxg2+ {[%emt 0:01:02]} 59. Kxg2 {[%emt 0:00:42]} f6 {[%emt 0:00:32]} 1/2-1/2

[Event "Polugaevsky Memorial 2018"]
[Site "Samara"]
[Date "2018.07.16"]
[Round "7"]
[White "Shaposhnikov, Evgeny"]
[Black "Mokshanov, Alexey"]
[Result "1/2-1/2"]
[ECO "D30"]
[WhiteElo "2572"]
[BlackElo "2430"]
[Annotator "RC"]
[PlyCount "80"]
[EventDate "2018.07.10"]
[EventType "swiss"]
[EventCountry "RUS"]
[SourceTitle "playchess.com"]
[Source "ChessBase"]
[SourceQuality "1"]
[TimeControl "40/5400+30:1800+30"]

1. Nf3 {[%emt 0:00:00]} d5 {[%emt 0:00:00]} 2. d4 {[%emt 0:00:00]} Nf6 {[%emt 0:00:00]} 3. c4 {[%emt 0:00:00]} e6 {[%emt 0:00:04]} 4. Bg5 {[%emt 0:01:06]} c6 {[%emt 0:01:20]} 5. e3 {[%emt 0:04:28]} Qb6 {[%emt 0:07:38]} 6. Bxf6 {[%emt 0:04:50]} Qxb2 {[%emt 0:04:05]} 7. Bxg7 {[%emt 0:01:10]} Bxg7 {[%emt 0:00:06]} 8. Nbd2 {[%emt 0:00:07]} b6 {[%emt 0:08:34]} 9. Be2 {[%emt 0:02:52]} O-O {[%emt 0:09:04]} 10. O-O {[%emt 0:00:08]} Qa3 {[%emt 0:00:24]} 11. Ne5 {[%emt 0:14:49]} Ba6 {[%emt 0:09:14]} 12. cxd5 {[%emt 0:02:17]} cxd5 {[%emt 0:01:19]} 13. Bxa6 {[%emt 0:05:25]} Nxa6 {[%emt 0:01:03]} 14. Qg4 {[%emt 0:01:01]} Qe7 {[%emt 0:01:43]} 15. a4 {[%emt 0:11:37]} Nb4 {[%emt 0:23:57]} 16. a5 {[%emt 0:03:43]} b5 {[%emt 0:01:24]} 17. a6 {[%emt 0:05:02]} Qd6 {[%emt 0:04:15]} 18. Rfb1 {[%emt 0:03:40]} Rab8 {[%emt 0:07:05]} 19. Qe2 {[%emt 0:10:05]} Rfc8 {[%emt 0:09:31]} 20. g3 {[%emt 0:11:05]} Nc2 {[%emt 0:04:25]} 21. Ra5 {[%emt 0:01:51]} Na3 {[%emt 0:01:56]} 22. Rb3 {[%emt 0:00:51]} Nc4 {[%emt 0:00:23]} 23. Raxb5 {[%emt 0:02:32]} Rxb5 {[%emt 0:00:05]} 24. Rxb5 {[%emt 0:04:14]} Nxd2 {[%emt 0:00:14]} 25. Qxd2 {[%emt 0:00:38]} Bxe5 {[%emt 0:00:29]} 26. dxe5 {[%emt 0:00:05]} Qxe5 {[%emt 0:00:03]} 27. Rb4 {[%emt 0:01:36]} Rc4 {[%emt 0:01:22]} 28. Rb1 {[%emt 0:02:19]} Rc6 {[%emt 0:03:10]} 29. Qe2 {[%emt 0:01:03]} Qe4 {[%emt 0:00:46]} 30. Rb8+ Kg7 31. Qb2+ {[%emt 0:01:34]} e5 {[%emt 0:00:23]} 32. Qa3 {[%emt 0:00:55]} Kg6 {[%emt 0:00:49]} 33. Rg8+ {[%emt 0:00:24]} Kf6 {[%emt 0:00:08]} 34. Re8 {[%emt 0:01:40]} Qb1+ {[%emt 0:00:15]} 35. Kg2 {[%emt 0:00:05]} Qe4+ {[%emt 0:00:00]} 36. Kg1 {[%emt 0:01:55]} Qb1+ {[%emt 0:00:02]} 37. Kg2 {[%emt 0:00:04]} Qe4+ {[%emt 0:00:02]} 38. Kg1 {[%emt 0:00:05]} Qb1+ {[%emt 0:00:02]} 39. Kg2 {[%emt 0:00:04]} Qe4+ {[%emt 0:00:02]} 40. Kg1 {[%emt 0:00:00]} Qb1+ {[%emt 0:00:00]} 1/2-1/2

[Event "Polugaevsky Memorial 2018"]
[Site "Samara"]
[Date "2018.07.16"]
[Round "7"]
[White "Matinian, Nikita"]
[Black "Salman, Pavel"]
[Result "1-0"]
[ECO "B85"]
[WhiteElo "2510"]
[BlackElo "2272"]
[Annotator "ChessBase"]
[PlyCount "57"]
[EventDate "2018.07.10"]
[EventType "swiss"]
[EventCountry "RUS"]
[SourceTitle "playchess.com"]
[Source "ChessBase"]
[SourceQuality "1"]
[TimeControl "40/5400+30:1800+30"]

1. e4 {[%emt 0:00:00]} c5 {[%emt 0:00:00]} 2. Nf3 {[%emt 0:00:00]} e6 {[%emt 0:00:00]} 3. d4 {[%emt 0:00:00]} cxd4 {[%emt 0:00:02]} 4. Nxd4 {[%emt 0:00:00]} a6 {[%emt 0:00:05]} 5. Nc3 {[%emt 0:00:00]} Qc7 {[%emt 0:00:15]} 6. Be2 {[%emt 0:00:03]} Nf6 {[%emt 0:00:39]} 7. O-O {[%emt 0:00:31]} Be7 {[%emt 0:00:23]} 8. f4 {[%emt 0:00:17]} d6 {[%emt 0:00:28]} 9. Be3 {[%emt 0:00:04]} O-O {[%emt 0:00:12]} 10. g4 {[%emt 0:00:32]} Nc6 {[%emt 0:15:39]} 11. g5 {[%emt 0:00:22]} Nd7 {[%emt 0:01:57]} 12. f5 {[%emt 0:00:20]} Nxd4 {[%emt 0:09:17]} 13. Qxd4 {[%emt 0:00:13]} Re8 {[%emt 0:04:41]} 14. Rad1 {[%emt 0:02:26]} Bf8 {[%emt 0:02:35]} 15. fxe6 {[%emt 0:15:29]} fxe6 {[%emt 0:00:39]} 16. Nd5 {[%emt 0:03:13]} Qd8 {[%emt 0:17:00]} 17. Nf6+ {[%emt 0:02:56]} Nxf6 {[%emt 0:02:00]} 18. gxf6 {[%emt 0:00:04]} gxf6 {[%emt 0:00:06]} 19. e5 {[%emt 0:04:42]} f5 {[%emt 0:07:03]} 20. Kh1 {[%emt 0:04:21]} Kh8 {[%emt 0:08:03]} 21. Rg1 {[%emt 0:06:00]} Qd7 {[%emt 0:14:38]} 22. Bf3 {[%emt 0:24:18]} Bg7 {[%emt 0:05:32]} 23. Rxg7 {[%emt 0:02:27]} Qxg7 {[%emt 0:02:22]} 24. Rg1 {[%emt 0:00:22]} dxe5 {[%emt 0:01:18]} 25. Qh4 {[%emt 0:00:24]} Qxg1+ {[%emt 0:01:01]} 26. Kxg1 {[%emt 0:00:19]} Rg8+ {[%emt 0:01:19]} 27. Kf2 {[%emt 0:00:05]} f4 {[%emt 0:00:21]} 28. Qf6+ {[%emt 0:00:05]} Rg7 {[%emt 0:00:03]} 29. Bc5 {[%emt 0:00:11]} 1-0

[Event "Polugaevsky Memorial 2018"]
[Site "Samara"]
[Date "2018.07.16"]
[Round "7"]
[White "Lugovskoy, Maxim"]
[Black "Kotlyar, Kirill"]
[Result "1-0"]
[ECO "B30"]
[WhiteElo "2391"]
[BlackElo "2407"]
[Annotator "ChessBase"]
[PlyCount "81"]
[EventDate "2018.07.10"]
[EventType "swiss"]
[EventCountry "RUS"]
[SourceTitle "playchess.com"]
[Source "ChessBase"]
[SourceQuality "1"]
[TimeControl "40/5400+30:1800+30"]

1. e4 {[%emt 0:00:00]} c5 {[%emt 0:00:00]} 2. Nf3 {[%emt 0:00:00]} Nc6 {[%emt 0:00:00]} 3. Bb5 {[%emt 0:01:26]} e6 {[%emt 0:00:35]} 4. c3 {[%emt 0:00:58]} Nge7 {[%emt 0:05:42]} 5. O-O {[%emt 0:03:24]} a6 {[%emt 0:00:09]} 6. Ba4 {[%emt 0:01:14]} b5 {[%emt 0:00:09]} 7. Bc2 {[%emt 0:00:04]} d5 {[%emt 0:00:13]} 8. d4 {[%emt 0:03:26]} cxd4 {[%emt 0:11:05]} 9. Nxd4 {[%emt 0:08:37]} Nxd4 {[%emt 0:05:53]} 10. Qxd4 {[%emt 0:01:36]} Bb7 {[%emt 0:14:28]} 11. e5 {[%emt 0:05:01]} Nc6 12. Qf4 {[%emt 0:00:24]} f6 {[%emt 0:10:36]} 13. Qg4 {[%emt 0:07:36]} f5 {[%emt 0:00:40]} 14. Qg3 {[%emt 0:00:40]} Qc7 {[%emt 0:01:37]} 15. Bf4 {[%emt 0:03:01]} O-O-O {[%emt 0:00:34]} 16. a4 {[%emt 0:01:47]} b4 {[%emt 0:03:38]} 17. Nd2 {[%emt 0:00:18]} bxc3 {[%emt 0:09:44]} 18. bxc3 {[%emt 0:00:41]} h6 19. Qg6 {[%emt 0:02:34]} Qd7 {[%emt 0:05:04]} 20. Rab1 {[%emt 0:00:39]} Qe8 {[%emt 0:07:51]} 21. Qxe8 {[%emt 0:00:08]} Rxe8 22. h4 g5 {[%emt 0:06:39]} 23. Be3 {[%emt 0:09:07]} Rg8 {[%emt 0:02:52]} 24. Rb6 {[%emt 0:02:24]} f4 {[%emt 0:09:32]} 25. Bd4 {[%emt 0:00:35]} Nxd4 {[%emt 0:00:05]} 26. cxd4 {[%emt 0:00:02]} a5 {[%emt 0:01:22]} 27. Bd3 {[%emt 0:09:11]} Bb4 {[%emt 0:01:16]} 28. Nb3 {[%emt 0:02:16]} Rg7 {[%emt 0:01:24]} 29. hxg5 {[%emt 0:02:41]} hxg5 {[%emt 0:00:12]} 30. Bb5 {[%emt 0:00:37]} Ree7 {[%emt 0:01:05]} 31. Rc1+ {[%emt 0:03:40]} Kb8 {[%emt 0:01:00]} 32. Nc5 {[%emt 0:00:08]} Ka7 {[%emt 0:00:11]} 33. Rd6 {[%emt 0:02:01]} Rg6 {[%emt 0:00:26]} 34. Nd7 {[%emt 0:08:38]} Rh7 {[%emt 0:02:25]} 35. Rc7 {[%emt 0:00:45]} Bxd6 {[%emt 0:00:05]} 36. exd6 {[%emt 0:00:02]} Rgh6 {[%emt 0:00:13]} 37. Kf1 {[%emt 0:00:42]} Ka8 {[%emt 0:00:12]} 38. Bd3 {[%emt 0:01:59]} Rh8 {[%emt 0:01:23]} 39. Nc5 {[%emt 0:00:08]} Rb8 {[%emt 0:00:19]} 40. Bb5 {[%emt 0:00:00]} Ka7 {[%emt 0:00:00]} 41. Bc6 1-0